bitfinex-derivatives/quotes_BNBF0:USTF0_20241230
["timestamp","ask_amount","ask_price","bid_price","bid_amount"]
[1735531009361,0.28715415,696.49,695.2,1.07514686]
[1735531010356,0.28715415,696.49,695.19,1.07514686]
[1735531011360,0.28715415,696.49,695.13,1.07514686]
[1735531012555,0.28715415,696.49,695.12,1.07514686]
[1735531013260,0.28715415,696.49,695.08,1.07514686]
[1735531015765,0.28715415,696.49,695.14,1.07514686]
[1735531018560,0.28715415,696.49,695.15,1.07514686]
[1735531019659,0.28715415,696.49,695.09,1.07514686]
[1735531020967,0.28715415,696.49,695.05,1.07514686]
[1735531021970,0.28715415,696.49,695.13,1.07514686]
[1735531023461,0.28715415,696.49,695.12,1.07514686]
[1735531024561,0.28715415,696.49,695.16,1.07514686]
[1735531025561,0.28715415,696.49,695.22,1.07514686]
[1735531026565,0.28715415,696.49,695.21,1.07514686]
[1735531027360,0.28715415,696.49,694.93,3.50034307]
[1735531027361,0.28715415,696.49,695.2,1.07514686]
[1735531028762,0.28715415,696.49,695.33,1.07514686]
[1735531029969,0.28715415,696.49,695.35,1.07514686]
[1735531030871,0.28715415,696.49,695.36,1.07514686]
[1735531032170,0.28715415,696.49,695.42,1.07514686]
[1735531033872,0.28715415,696.49,695.49,1.07514686]
[1735531036171,0.28715415,696.49,695.51,1.07514686]
[1735531037177,0.28715415,696.49,695.46,1.07514686]
[1735531038974,0.28715415,696.49,695.49,1.07514686]
[1735531040081,0.28715415,696.49,695.44,1.07514686]
[1735531040582,0.28715415,696.49,695.43,1.07514686]
[1735531041575,0.28715415,696.49,695.44,1.07514686]
[1735531042975,0.28715415,696.49,695.5,1.07514686]
[1735531044185,0.28715415,696.49,695.35,1.07514686]
[1735531045983,0.28715415,696.49,695.37,1.07514686]
[1735531046881,0.28715415,696.49,695.23,1.07514686]
[1735531046882,0.28715415,696.49,695.47,1.07514686]
[1735531048187,0.28715415,696.49,695.46,1.07514686]
[1735531049187,0.28715415,696.49,695.44,1.07514686]
[1735531050088,0.28715415,696.49,695.43,1.07514686]
[1735531051084,0.28715415,696.49,695.44,1.07514686]
[1735531052180,0.28715415,696.49,695.4,1.07514686]
[1735531053589,0.28715415,696.49,695.12,6.21298852]
[1735531053590,0.28715415,696.49,695.51,1.07514686]
[1735531054691,0.28715415,696.49,695.49,1.07514686]
[1735531055488,0.28715415,696.49,695.52,1.07514686]
[1735531056387,0.28715415,696.49,695.63,1.07514686]
[1735531057189,0.28715415,696.49,695.61,1.07514686]
[1735531059688,0.28715415,696.49,695.59,1.07514686]
[1735531060595,0.28715415,696.49,695.57,1.07514686]
[1735531061793,0.28715415,696.49,695.58,1.07514686]
[1735531062895,0.28715415,696.49,693.17,2.90703949]
[1735531062896,0.28715415,696.49,695.6,1.07514686]
[1735531064897,0.28715415,696.49,695.59,1.07514686]
[1735531065790,0.28715415,696.49,695.55,1.07514686]
[1735531066696,0.28715415,696.49,695.59,1.07514686]
[1735531067798,0.28715415,696.49,695.6,1.07514686]
[1735531070193,0.28715415,696.49,695.61,1.07514686]
[1735531071394,0.28715415,696.49,695.64,1.07514686]
[1735531072401,0.28715415,696.49,695.66,1.07514686]
[1735531073401,0.28715415,696.49,695.64,1.07514686]
[1735531074403,0.28715415,696.49,695.2,2.19509151]
[1735531074404,0.28715415,696.49,695.67,1.07514686]
[1735531076402,0.28715415,696.49,695.57,1.07514686]
[1735531076403,0.28715415,696.49,695.68,1.07514686]
[1735531077608,0.28715415,696.49,695.59,1.07514686]
[1735531079612,0.28715415,696.49,695.62,1.07514686]
[1735531080404,0.28715415,696.49,695.64,1.07514686]
[1735531081410,0.28715415,696.49,695.62,1.07514686]
[1735531082412,0.28715415,696.49,695.64,1.07514686]
[1735531084317,0.28715415,696.49,695.68,1.07514686]
[1735531085517,0.28715415,696.49,695.7,1.07514686]
[1735531087322,0.28715415,696.49,695.73,1.07514686]
[1735531088618,0.28715415,696.49,695.3,2.19509151]
[1735531088619,0.28715415,696.49,695.74,1.07514686]
[1735531090818,0.28715415,696.49,695.71,1.07514686]
[1735531091816,0.28715415,696.49,695.74,1.07514686]
[1735531092821,0.28715415,696.49,695.76,1.07514686]
[1735531093820,0.28715415,696.49,695.71,1.07514686]
[1735531094820,0.28715415,696.49,695.72,1.07514686]
[1735531095621,0.28715415,696.49,695.73,1.07514686]
[1735531096322,0.28715415,696.49,695.71,1.07514686]
[1735531097123,0.28715415,696.49,695.7,1.07514686]
[1735531099325,0.28715415,696.49,695.34,1.07514686]
[1735531100324,0.28715415,696.49,695.35,1.07514686]
[1735531101520,0.28715415,696.49,695.3,1.07514686]
[1735531102625,0.28715415,696.49,695.28,1.07514686]
[1735531103625,0.28715415,696.49,695.25,1.07514686]
[1735531104420,0.28715415,696.49,695.26,1.07514686]
[1735531105822,0.28715415,696.49,695.27,1.07514686]
[1735531107128,0.28715415,696.49,692.88,2.91340704]
[1735531107129,0.28715415,696.49,695.24,1.07514686]
[1735531108229,0.28715415,696.49,695.23,1.07514686]
[1735531109130,0.28715415,696.49,695.3,1.07514686]
[1735531110326,0.28715415,696.49,695.33,1.07514686]
[1735531111330,0.28715415,696.49,695.51,1.07514686]
[1735531112429,0.28715415,696.49,695.55,1.07514686]
[1735531113531,0.28715415,696.49,695.7,1.07514686]
[1735531114533,0.28715415,696.49,695.67,1.07514686]
[1735531115531,0.28715415,696.49,695.61,1.07514686]
[1735531116633,0.28715415,696.49,695.59,1.07514686]
[1735531117635,0.28715415,696.49,695.6,1.07514686]
[1735531118634,0.28715415,696.49,695.49,1.07514686]
[1735531118635,0.28715415,696.49,695.59,1.07514686]
[1735531119838,0.28715415,696.49,695.55,1.07514686]
[1735531120936,0.28715415,696.49,695.56,1.07514686]
[1735531124037,0.28715415,696.49,695.37,3.51240281]
[1735531124038,0.28715415,696.49,695.53,1.07514686]
[1735531125034,0.28715415,696.49,695.56,1.07514686]
[1735531126137,0.28715415,696.49,695.57,1.07514686]
[1735531128142,0.28715415,696.49,695.54,1.07514686]
[1735531129243,0.28715415,696.49,695.56,1.07514686]
[1735531130243,0.28715415,696.49,695.24,1.29017623]
[1735531130244,0.28715415,696.49,695.53,1.07514686]
[1735531131153,0.28715415,696.49,695.54,1.07514686]
[1735531132241,0.28715415,696.49,695.56,1.07514686]
[1735531133447,0.28715415,696.49,695.52,1.07514686]
[1735531134451,0.28715415,696.49,695.53,1.07514686]
[1735531136448,0.28715415,696.49,695.52,1.07514686]
[1735531137645,0.28715415,696.49,695.61,1.07514686]
[1735531138648,0.28715415,696.49,695.59,1.07514686]
[1735531139852,0.28715415,696.49,695.55,1.07514686]
[1735531140650,0.28715415,696.49,695.52,1.07514686]
[1735531141245,0.28715415,696.49,695.5,1.07514686]
[1735531142247,0.28715415,696.49,695.55,1.07514686]
[1735531143251,0.28715415,696.49,695.56,1.07514686]
[1735531144253,0.28715415,696.49,695.43,1.07514686]
[1735531144254,0.28715415,696.49,695.57,1.07514686]
[1735531145554,0.28715415,696.49,695.52,1.07514686]
[1735531146754,0.28715415,696.49,695.53,1.07514686]
[1735531148658,0.28715415,696.49,687.94,5.16556339]
[1735531148659,0.28715415,696.49,695.55,1.07514686]
[1735531149757,0.28715415,696.49,695.59,1.07514686]
[1735531151153,0.28715415,696.49,695.57,1.07514686]
[1735531152057,0.28715415,696.49,695.71,1.07514686]
[1735531153058,0.28715415,696.49,695.78,1.07514686]
[1735531153957,0.28715415,696.49,695.75,1.07514686]
[1735531154959,0.28715415,696.49,695.77,1.07514686]
[1735531156060,0.28715415,696.49,695.84,1.07514686]
[1735531156864,0.28715415,696.49,695.82,1.07514686]
[1735531157863,0.28715415,696.49,695.79,1.07514686]
[1735531158764,0.28715415,696.49,695.4,2.19509151]
[1735531158765,0.28715415,696.49,695.77,1.07514686]
[1735531159568,0.28715415,696.49,695.56,6.22808566]
[1735531159569,0.28715415,696.49,695.78,1.07514686]
[1735531160465,0.28715415,696.49,695.79,1.07514686]
[1735531161569,0.28715415,696.49,695.76,1.07514686]
[1735531162470,0.28715415,696.49,695.75,1.07514686]
[1735531163467,0.28715415,696.49,695.77,1.07514686]
[1735531164668,0.28715415,696.49,695.76,1.07514686]
[1735531165668,0.28715415,696.49,695.75,1.07514686]
[1735531167572,0.28715415,696.49,695.77,1.07514686]
[1735531168774,0.28715415,696.49,688.93,8.60689545]
[1735531168775,0.28715415,696.49,695.68,1.07514686]
[1735531169869,0.28715415,696.49,695.67,1.07514686]
[1735531170775,0.28715415,696.49,695.65,1.07514686]
[1735531171971,0.28715415,696.49,695.69,1.07514686]
[1735531172975,0.28715415,696.49,695.67,1.07514686]
[1735531174077,0.28715415,696.49,695.54,1.07514686]
[1735531174977,0.28715415,696.49,695.62,1.07514686]
[1735531178275,0.28715415,696.49,695.57,1.07514686]
[1735531179476,0.28715415,696.49,695.58,1.07514686]
[1735531180370,0.28715415,696.49,695.56,1.07514686]
[1735531181376,0.28715415,696.49,695.57,1.07514686]
[1735531182473,0.28715415,696.49,695.53,1.07514686]
[1735531187177,0.28715415,696.49,695.51,1.07514686]
[1735531188476,0.28715415,696.49,695.54,1.07514686]
[1735531190077,0.28715415,696.49,695.61,1.07514686]
[1735531191882,0.28715415,696.49,695.6,1.07514686]
[1735531192979,0.28715415,696.49,695.64,1.07514686]
[1735531193981,0.28715415,696.49,695.63,1.07514686]
[1735531195381,0.28715415,696.49,695.58,1.07514686]
[1735531196179,0.28715415,696.49,695.52,1.07514686]
[1735531197375,0.28715415,696.49,695.53,1.07514686]
[1735531198276,0.28715415,696.49,695.47,1.07514686]
[1735531200078,0.28715415,696.49,695.38,1.07514686]
[1735531201379,0.28715415,696.49,687.94,8.61042334]
[1735531201380,0.28715415,696.49,695.4,1.07514686]
[1735531202784,0.28715415,696.49,694.95,1.07514686]
[1735531203880,0.28715415,696.49,695.09,1.07514686]
[1735531205384,0.28715415,696.49,695.14,1.07514686]
[1735531206382,0.28715415,696.49,695.19,1.07514686]
[1735531207589,0.28715415,696.49,695.21,1.07514686]
[1735531208486,0.28715415,696.49,695.24,1.07514686]
[1735531209788,0.28715415,696.49,695.49,1.07514686]
[1735531210880,0.28715415,696.49,695.66,1.07514686]
[1735531212689,0.28715415,696.49,695.67,1.07514686]
[1735531213590,0.28715415,696.49,695.72,1.07514686]
[1735531214486,0.28715415,696.49,688.61,8.60788404]
[1735531214487,0.28715415,696.49,695.75,1.07514686]
[1735531215391,0.28715415,696.49,695.79,1.07514686]
[1735531216583,0.28715415,696.49,695.74,1.07514686]
[1735531217589,0.28715415,696.49,695.73,1.07514686]
[1735531218992,0.28715415,696.49,695.71,1.07514686]
[1735531220094,0.28715415,696.49,695.7,1.07514686]
[1735531221188,0.28715415,696.49,695.56,1.07514686]
[1735531222194,0.28715415,696.49,695.57,1.07514686]
[1735531223091,0.28715415,696.49,695.56,1.07514686]
[1735531223896,0.28715415,696.49,695.6,1.07514686]
[1735531226293,0.28715415,696.49,695.64,1.07514686]
[1735531226992,0.28715415,696.49,695.69,1.07514686]
[1735531227598,0.07906683,696.49,695.69,1.07514686]
[1735531228192,0.07906683,696.49,695.87,1.07514686]
[1735531228490,1.07280035,697.07,695.87,1.07514686]
[1735531228793,0.28692346,697.05,695.87,1.07514686]
[1735531229097,0.28692346,697.05,695.95,1.07514686]
[1735531230701,0.28692346,697.05,695.94,1.07514686]
[1735531231801,0.28692346,697.05,695.91,1.07514686]
[1735531233001,0.28692346,697.05,695.78,1.07514686]
[1735531234200,0.28692346,697.05,695.77,1.07514686]
[1735531235004,0.28692346,697.05,695.69,1.07514686]
[1735531235805,0.26428103,697.04,695.69,1.07514686]
[1735531236005,0.28693581,697.02,695.69,1.07514686]
[1735531236206,0.26428103,697.01,695.62,1.07514686]
[1735531236408,0.28694816,696.99,695.62,1.07514686]
[1735531236608,0.26430563,696.98,695.62,1.07514686]
[1735531236807,0.28694816,696.99,695.62,1.07514686]
[1735531237007,0.28694816,696.99,695.6,1.07514686]
[1735531237307,0.26431758,696.98,695.6,1.07514686]
[1735531238110,0.26431758,696.98,695.55,1.07514686]
[1735531238708,0.28696051,696.96,695.55,1.07514686]
[1735531238904,0.26431758,696.95,695.55,1.07514686]
[1735531239108,0.28696051,696.96,695.55,1.07514686]
[1735531239406,0.26435102,696.95,695.47,1.07514686]
[1735531239808,0.28697286,696.93,695.47,1.07514686]
[1735531240009,0.26435102,696.92,695.47,1.07514686]
[1735531240211,0.28698522,696.9,695.47,1.07514686]
[1735531241609,0.28698522,696.9,695.38,1.07514686]
[1735531241610,0.28698522,696.9,695.43,1.07514686]
[1735531242806,0.28698522,696.9,695.43,6.21537113]
[1735531243011,0.28698522,696.9,695.44,6.21537113]
[1735531243313,0.28698522,696.9,695.45,3.49939492]
[1735531243513,0.28698522,696.9,695.49,1.07514686]
[1735531245507,0.28698522,696.9,688.59,8.59952892]
[1735531245508,0.28698522,696.9,695.43,1.07514686]
[1735531246612,0.28698522,696.9,686.46,4.96203599]
[1735531246613,0.28698522,696.9,695.45,1.07514686]
[1735531247613,0.28698522,696.9,695.34,4.57398744]
[1735531247614,0.28698522,696.9,695.43,1.07514686]
[1735531248616,0.28698522,696.9,695.44,1.07514686]
[1735531249516,0.28698522,696.9,695.14,2.71606051]
[1735531249517,0.28698522,696.9,695.45,1.07514686]
[1735531250614,0.28698522,696.9,695.44,1.07514686]
[1735531252114,0.28698522,696.9,695.43,1.07514686]
[1735531252820,0.28698522,696.9,695.45,1.07514686]
[1735531253815,0.28698522,696.9,695.43,1.07514686]
[1735531254916,0.28698522,696.9,695.46,1.07514686]
[1735531255814,0.28698522,696.9,695.47,1.07514686]
[1735531259221,0.28698522,696.9,695.5,1.07514686]
[1735531260418,0.28698522,696.9,695.49,1.07514686]
[1735531261721,0.28698522,696.9,695.45,1.07514686]
[1735531262322,0.28698522,696.9,695.45,2.93573517]
[1735531262527,0.28698522,696.9,695.46,1.8606053]
[1735531262927,0.28698522,696.9,695.45,1.07514686]
[1735531263927,0.28698522,696.9,695.48,1.07514686]
[1735531264928,0.28698522,696.9,695.22,2.71610159]
[1735531264929,0.28698522,696.9,695.42,1.07514686]
[1735531267328,0.28698522,696.9,695.46,1.07514686]
[1735531268332,0.28698522,696.9,695.48,1.07514686]
[1735531269633,0.28698522,696.9,695.51,1.07514686]
[1735531270629,0.28698522,696.9,695.57,1.07514686]
[1735531271733,0.28698522,696.9,695.63,1.07514686]
[1735531272531,0.28698522,696.9,695.64,1.07514686]
[1735531273629,0.28698522,696.9,693.48,2.8951254]
[1735531273630,0.28698522,696.9,695.59,1.07514686]
[1735531275037,0.28698522,696.9,695.66,1.07514686]
[1735531276238,0.28698522,696.9,695.69,1.07514686]
[1735531277036,1.35978557,696.9,695.68,1.07514686]
[1735531277837,1.35978557,696.9,695.69,1.07514686]
[1735531278834,0.28698522,696.9,695.68,1.07514686]
[1735531279935,0.28698522,696.9,695.05,2.19509151]
[1735531279936,0.28698522,696.9,695.65,1.07514686]
[1735531281039,0.28698522,696.9,695.73,1.07514686]
[1735531282143,0.28698522,696.9,695.55,1.07514686]
[1735531283147,0.28698522,696.9,695.62,1.07514686]
[1735531284344,0.28698522,696.9,695.61,1.07514686]
[1735531286446,0.28698522,696.9,695.62,1.07514686]
[1735531287338,0.28698522,696.9,695.8,1.07514686]
[1735531288546,0.28698522,696.9,695.76,1.07514686]
[1735531289849,0.28698522,696.9,695.74,1.07514686]
[1735531290947,0.28698522,696.9,695.67,1.07514686]
[1735531291248,0.28698522,696.9,695.67,4.56923754]
[1735531291447,0.28698522,696.9,695.68,1.85794299]
[1735531291651,0.28698522,696.9,695.67,1.07514686]
[1735531292844,0.28698522,696.9,695.62,1.07514686]
[1735531294448,0.28698522,696.9,695.74,1.07514686]
[1735531295245,0.28698522,696.9,695.73,1.07514686]
[1735531297049,0.28698522,696.9,695.55,1.07514686]
[1735531297843,0.28698522,696.9,695.54,1.07514686]
[1735531298245,0.28698522,696.9,695.54,2.9254092]
[1735531298445,0.28698522,696.9,695.55,1.85026234]
[1735531298752,0.28698522,696.9,695.54,1.07514686]
[1735531299147,0.28698522,696.9,695.55,1.07514686]
[1735531300451,0.28698522,696.9,695.49,1.07514686]
[1735531302453,0.28698522,696.9,695.57,1.07514686]
[1735531304154,0.28698522,696.9,695.56,1.07514686]
[1735531305150,0.28698522,696.9,695.58,1.07514686]
[1735531306352,0.28698522,696.9,695.6,1.07514686]
[1735531307351,0.28698522,696.9,695.6,4.55122447]
[1735531307556,0.28698522,696.9,695.71,1.07514686]
[1735531308353,0.28698522,696.9,695.72,1.07514686]
[1735531309454,0.28698522,696.9,695.83,1.07514686]
[1735531310256,0.28698522,696.9,695.86,1.07514686]
[1735531311161,0.28698522,696.9,695.87,1.07514686]
[1735531312055,0.28698522,696.9,695.76,1.07514686]
[1735531312056,0.28698522,696.9,695.91,1.07514686]
[1735531313258,0.28698522,696.9,695.67,1.07514686]
[1735531314255,0.28698522,696.9,695.14,1.29017623]
[1735531314256,0.28698522,696.9,695.73,1.07514686]
[1735531315964,0.28698522,696.9,696.05,1.07514686]
[1735531317055,0.28698522,696.9,696.09,1.07514686]
[1735531317764,0.0801021,696.9,696.09,1.07514686]
[1735531317961,0.0801021,696.9,696.2,1.07514686]
[1735531318956,0.0801021,696.9,696.18,1.07514686]
[1735531320260,0.0801021,696.9,696.16,1.07514686]
[1735531321467,0.0801021,696.9,696.15,1.07514686]
[1735531322666,0.0801021,696.9,696.11,1.84555197]
[1735531322667,0.0801021,696.9,696.12,1.84555197]
[1735531322864,0.0801021,696.9,696.07,1.83463116]
[1735531323265,0.0801021,696.9,696.06,1.07514686]
[1735531323467,0.0801021,696.9,696.07,1.07514686]
[1735531324668,0.0801021,696.9,696.14,1.07514686]
[1735531325768,0.0801021,696.9,696.22,1.07514686]
[1735531326875,0.0801021,696.9,696.2,1.07514686]
[1735531328072,0.0801021,696.9,695.71,2.19509151]
[1735531328073,0.0801021,696.9,696.18,1.07514686]
[1735531329274,0.0801021,696.9,696.2,1.07514686]
[1735531330574,0.0801021,696.9,696.22,1.07514686]
[1735531331675,0.0801021,696.9,696.13,1.07514686]
[1735531331869,1.07280035,698.36,696.13,1.07514686]
[1735531332171,0.26396506,698.35,696.13,1.07514686]
[1735531332570,0.26396506,698.35,696.14,1.07514686]
[1735531332775,0.26396506,698.34,696.14,1.07514686]
[1735531332975,0.26396506,698.33,696.14,1.07514686]
[1735531333175,0.26396506,698.32,696.14,1.07514686]
[1735531333373,0.26396506,698.31,696.04,1.07514686]
[1735531334079,0.26402486,698.3,696.04,1.07514686]
[1735531334280,1.07280035,698.32,696.04,1.07514686]
[1735531334478,1.07280035,698.32,695.82,3.45866925]
[1735531334479,1.07280035,698.14,696.11,1.07514686]
[1735531334675,0.26402625,698.13,696.11,1.07514686]
[1735531334876,0.26402625,698.12,696.11,1.07514686]
[1735531335077,1.07280035,698.14,696.11,1.07514686]
[1735531335078,0.26402625,698.11,696.11,1.07514686]
[1735531335376,0.26402625,698.1,696.11,1.07514686]
[1735531335580,1.07280035,697.94,696.23,1.07514686]
[1735531335780,0.26402625,697.93,696.23,1.07514686]
[1735531336482,1.07280035,697.92,696.29,1.07514686]
[1735531336677,0.26402625,697.91,696.29,1.07514686]
[1735531336876,0.26402465,697.9,696.29,1.07514686]
[1735531337082,0.26402465,697.89,696.29,1.07514686]
[1735531337282,0.26402465,697.88,696.29,1.07514686]
[1735531337475,0.26402465,697.87,696.3,1.07514686]
[1735531337677,0.26402465,697.91,696.3,1.07514686]
[1735531337882,0.26402465,697.9,696.3,1.07514686]
[1735531338081,0.26402465,697.89,696.3,1.07514686]
[1735531338278,0.26402465,697.88,696.32,1.07514686]
[1735531338576,0.26402465,697.87,696.32,1.07514686]
[1735531338782,0.26402465,697.86,696.32,1.07514686]
[1735531338975,1.07280035,697.92,696.33,0.28722013]
[1735531338976,0.26402465,697.85,696.33,0.28722013]
[1735531339180,1.07280035,697.92,696.33,0.28722013]
[1735531339380,0.55057277,697.91,696.33,0.28722013]
[1735531339586,0.26400287,697.9,696.39,1.07514686]
[1735531340483,0.26400287,697.9,696.41,1.07514686]
[1735531342381,0.26400287,697.9,696.36,1.07514686]
[1735531343884,0.26400287,697.9,696.41,1.07514686]
[1735531344184,0.2865699,697.91,696.41,1.07514686]
[1735531344684,0.2865699,697.91,696.33,0.28722013]
[1735531345885,0.2865699,697.91,696.33,1.36236699]
[1735531346986,0.2865699,697.91,696.34,1.07514686]
[1735531347285,0.2865699,697.91,696.35,0.28721189]
[1735531357784,0.2865699,697.91,696.37,1.07514686]
[1735531357987,0.2865699,697.91,696.38,0.28719951]
[1735531360191,1.07280035,697.87,696.4,1.07514686]
[1735531360389,1.07280035,697.87,696.41,0.28718714]
[1735531361488,0.2865699,697.91,696.41,0.28718714]
[1735531364496,1.07280035,697.9,696.41,0.28718714]
[1735531365288,0.28657811,697.89,696.41,0.28718714]
[1735531368192,1.07280035,697.88,696.41,0.28718714]
[1735531368695,0.28658632,697.87,696.41,0.28718714]
[1735531369096,1.35938667,697.87,696.41,0.28718714]
[1735531370195,1.07280035,697.85,696.41,0.28718714]
[1735531371197,1.07280035,697.81,696.41,0.28718714]
[1735531372098,1.07280035,697.8,696.41,1.362334]
[1735531373600,1.07280035,697.8,696.42,1.07514686]
[1735531374495,1.07280035,697.77,696.41,1.362334]
[1735531375601,1.07280035,697.73,696.47,1.07514686]
[1735531377002,1.07280035,697.73,696.49,1.07514686]
[1735531378003,1.07280035,697.74,696.5,1.07514686]
[1735531380405,1.07280035,697.75,696.52,1.07514686]
[1735531381704,0.28658632,697.87,696.53,1.07514686]
[1735531381705,1.07280035,697.74,696.53,1.07514686]
[1735531382706,1.07280035,697.73,696.56,1.07514686]
[1735531383101,0.2640257,697.72,696.56,1.07514686]
[1735531383301,1.07280035,697.73,696.56,1.07514686]
[1735531383806,1.07280035,697.62,696.54,1.07514686]
[1735531384604,0.26408253,697.61,696.41,0.28718714]
[1735531384797,1.07280035,697.64,696.41,0.28718714]
[1735531384997,0.26408254,697.63,696.41,0.28718714]
[1735531385600,1.07280035,697.55,696.41,0.28718714]
[1735531386705,1.07280035,697.57,696.41,0.28718714]
[1735531388006,0.28658632,697.87,696.41,0.28718714]
[1735531388007,1.07280035,697.58,696.41,0.28718714]
[1735531388505,1.07280035,697.58,696.23,1.07514686]
[1735531388905,1.07280035,697.65,695.98,1.07514686]
[1735531389107,0.26413154,697.64,695.99,0.28736045]
[1735531389306,0.28668491,697.63,695.99,0.28736045]
[1735531389606,0.26413154,697.62,695.99,0.28736045]
[1735531389807,0.28669313,697.61,695.99,0.28736045]
[1735531390007,0.26413154,697.6,695.99,0.28736045]
[1735531390210,0.28670135,697.59,695.99,0.28736045]
[1735531391709,0.26413123,697.58,695.99,0.28736045]
[1735531391905,0.28670135,697.59,695.99,0.28736045]
[1735531392509,0.26413896,697.58,695.99,0.28736045]
[1735531393413,0.55085149,697.57,695.99,0.28736045]
[1735531393610,0.5508556,697.56,695.99,0.28736045]
[1735531393811,0.26414192,697.55,695.99,0.28736045]
[1735531394011,0.28671368,697.56,695.99,0.28736045]
[1735531404611,0.26409414,697.55,695.99,0.28736045]
[1735531405418,0.26409414,697.55,696.1,1.07514686]
[1735531405617,0.26409414,697.55,696.11,0.28731091]
[1735531405817,0.28671368,697.56,696.11,0.28731091]
[1735531406120,0.26409091,697.55,696.11,0.28731091]
[1735531406515,0.26409091,697.55,696.12,1.07514686]
[1735531406718,0.26409091,697.55,696.13,0.28730265]
[1735531407822,0.26409091,697.55,696.14,1.07514686]
[1735531408317,0.26409091,697.55,696.14,4.55126014]
[1735531408514,0.26409091,697.55,696.15,3.47611328]
[1735531409118,0.26409091,697.55,696.16,3.47611328]
[1735531409319,0.26409091,697.55,696.17,3.47611328]
[1735531409523,0.26409091,697.55,696.18,3.4763186]
[1735531409820,0.26409091,697.55,696.19,3.4763186]
[1735531410018,0.26409091,697.55,696.2,1.84410478]
[1735531410211,0.26409091,697.55,696.14,3.47624015]
[1735531410919,0.28671368,697.56,696.14,3.47624015]
[1735531411115,0.26408518,697.55,696.14,3.47624015]
[1735531411522,0.26408518,697.55,696.15,1.07514686]
[1735531411820,0.26408518,697.55,696.15,2.91925164]
[1735531412021,0.26408518,697.55,696.16,1.84410478]
[1735531412517,0.26408518,697.55,696.13,0.28730265]
[1735531412518,0.26408518,697.55,696.13,1.36244951]
[1735531413117,0.26408518,697.55,696.14,0.28729853]
[1735531413421,0.26408518,697.55,696.14,1.36244539]
[1735531414015,0.26408518,697.55,696.14,3.20655017]
[1735531414217,0.26408518,697.55,696.15,1.84410478]
[1735531414415,0.26408518,697.55,696.15,1.07514686]
[1735531414617,0.28671368,697.56,696.15,1.07514686]
[1735531415323,0.28671368,697.56,696.14,0.28729853]
[1735531418027,0.28671368,697.56,696.16,1.07514686]
[1735531418525,0.2641485,697.55,696.16,1.07514686]
[1735531418725,0.28671368,697.56,696.16,1.07514686]
[1735531419025,0.26415687,697.55,696.16,1.07514686]
[1735531419225,0.26415687,697.55,696.14,0.28729853]
[1735531419226,1.07280035,697.53,696.14,0.28729853]
[1735531419625,0.26415631,697.52,696.14,0.28729853]
[1735531419826,0.28673424,697.51,696.14,0.28729853]
[1735531420227,1.07280035,697.47,696.14,0.28729853]
[1735531420627,0.28675479,697.46,696.14,0.28729853]
[1735531421425,0.26416585,697.45,696.14,0.28729853]
[1735531421628,0.28676301,697.44,696.14,0.28729853]
[1735531421827,0.26416585,697.43,696.14,0.28729853]
[1735531422229,0.28677124,697.42,696.14,0.28729853]
[1735531422431,1.07280035,697.39,696.14,0.28729853]
[1735531422729,0.26416585,697.38,696.14,0.28729853]
[1735531422929,1.07280035,697.39,696.14,0.28729853]
[1735531423630,1.07280035,697.38,696.14,0.28729853]
[1735531423824,0.2867918,697.37,696.14,0.28729853]
[1735531440834,0.26419336,697.36,696.14,0.28729853]
[1735531441037,0.28680002,697.35,696.14,0.28729853]
[1735531441231,0.26419336,697.34,696.14,0.28729853]
[1735531441830,0.28680002,697.35,696.14,0.28729853]
[1735531441831,0.26420165,697.33,696.14,0.28729853]
[1735531442034,0.26420165,697.32,696.14,0.28729853]
[1735531442238,0.26420165,697.31,696.14,0.28729853]
[1735531442432,0.26420165,697.3,696.14,0.28729853]
[1735531442738,0.28680002,697.35,696.14,0.28729853]
[1735531442938,0.26421178,697.34,696.14,0.28729853]
[1735531443538,0.28680002,697.35,696.14,0.28729853]
[1735531445032,0.26421407,697.34,696.14,0.28729853]
[1735531445234,0.28680002,697.35,696.14,0.28729853]
[1735531445534,0.26421418,697.34,696.14,0.28729853]
[1735531445935,0.28680825,697.33,696.14,0.28729853]
[1735531451543,1.07280035,697.32,696.14,0.28729853]
[1735531451738,0.28681648,697.31,696.14,0.28729853]
[1735531454041,1.07280035,697.3,696.14,0.28729853]
[1735531454237,0.2868247,697.29,696.14,0.28729853]
[1735531456142,1.07280035,697.27,696.14,0.28729853]
[1735531456348,0.28683704,697.26,696.14,0.28729853]
[1735531473655,1.35963739,697.26,696.14,0.28729853]
[1735531477159,1.07280035,697.24,696.14,0.28729853]
[1735531478558,1.35963739,697.26,696.14,0.28729853]
[1735531479361,1.07280035,697.24,696.14,0.28729853]
[1735531480269,1.07280035,697.22,696.14,0.28729853]
[1735531482062,1.07280035,697.23,696.14,0.28729853]
[1735531483369,1.07280035,697.25,696.14,0.28729853]
[1735531484473,1.07280035,697.24,696.14,0.28729853]
[1735531485564,1.07280035,697.23,696.14,0.28729853]
[1735531488069,1.07280035,697.25,696.14,0.28729853]
[1735531489072,1.07280035,697.23,696.14,0.28729853]
[1735531490364,0.28683704,697.26,696.14,0.28729853]
[1735531492566,0.28683704,697.26,696.14,1.36244539]
[1735531493568,0.28683704,697.26,696.14,0.28729853]
[1735531528697,0.28683704,697.26,696.2,1.07514686]
[1735531529501,0.28683704,697.26,696.19,1.07514686]